[Event "Titled Tuesday Blitz August 16 Late 2022"]
[White "Maltsevskaya, Aleksandra"]
[Black "Babazada, Khazar"]
[WhiteFideId "24174041"]
[BlackFideId "13413554"]
[WhiteElo "2243"]
[BlackElo "2409"]
[Result "1-0"]
[Round "02"]
[TimeControl "180+1"]
[Date "2022.08.16"]
[WhiteClock "0:01:09"]
[BlackClock "0:01:08"]

1. e4 {[%clk 0:03:00]}  g6 {[%clk 0:02:59]} 2. d4 {[%clk 0:03:00]}  Bg7 {[%clk 0:03:00]} 3. Nf3 {[%clk 0:03:01]}  d6 {[%clk 0:03:00]} 4. c3 {[%clk 0:02:59]}  Nf6 {[%clk 0:03:01]} 5. Bd3 {[%clk 0:02:58]}  O-O {[%clk 0:03:01]} 6. O-O {[%clk 0:02:59]}  Nc6 {[%clk 0:03:02]} 7. Bg5 {[%clk 0:02:59]}  e5 {[%clk 0:03:02]} 8. h3 {[%clk 0:02:56]}  h6 {[%clk 0:03:02]} 9. Bh4 {[%clk 0:02:56]}  Qe8 {[%clk 0:03:02]} 10. Na3 {[%clk 0:02:52]}  a6 {[%clk 0:03:01]} 11. Re1 {[%clk 0:02:50]}  Nh5 {[%clk 0:03:02]} 12. Bf1 {[%clk 0:02:46]}  g5 {[%clk 0:02:40]} 13. Bg3 {[%clk 0:02:43]}  Nxg3 {[%clk 0:02:40]} 14. fxg3 {[%clk 0:02:44]}  Nd8 {[%clk 0:02:41]} 15. Nc4 {[%clk 0:02:43]}  g4 {[%clk 0:02:20]} 16. hxg4 {[%clk 0:02:38]}  Bxg4 {[%clk 0:02:21]} 17. Ne3 {[%clk 0:02:39]}  Bxf3 {[%clk 0:02:22]} 18. Qxf3 {[%clk 0:02:37]}  exd4 {[%clk 0:02:22]} 19. Nf5 {[%clk 0:02:38]}  Ne6 {[%clk 0:02:20]} 20. Qg4 {[%clk 0:02:25]}  Kh8 {[%clk 0:02:10]} 21. cxd4 {[%clk 0:02:03]}  Rg8 {[%clk 0:02:09]} 22. Qh5 {[%clk 0:01:47]}  Qf8 {[%clk 0:01:17]} 23. e5 {[%clk 0:01:42]}  dxe5 {[%clk 0:01:16]} 24. dxe5 {[%clk 0:01:42]}  Rd8 {[%clk 0:01:16]} 25. Rad1 {[%clk 0:01:39]}  Rxd1 {[%clk 0:01:14]} 26. Rxd1 {[%clk 0:01:40]}  Qc5+ {[%clk 0:01:15]} 27. Kh1 {[%clk 0:01:40]}  Qxe5 {[%clk 0:01:16]} 28. Rd7 {[%clk 0:01:15]}  Qe1 {[%clk 0:01:08]} 29. Nxh6 {[%clk 0:01:09]} 1-0


[Site "https://www.chess.com"]

[Event "Titled Tuesday Blitz August 16 Late 2022"]
[White "Meduri, Aakaash"]
[Black "Mikhailov, Viacheslav"]
[WhiteFideId "2032252"]
[BlackFideId "4187369"]
[WhiteElo "2113"]
[BlackElo "2381"]
[Result "0-1"]
[Round "02"]
[TimeControl "180+1"]
[Date "2022.08.18"]
[WhiteClock "0:00:00"]
[BlackClock "0:00:00"]

1. d4 {[%clk 0:00:00]}  c5 {[%clk 0:00:00]} 2. e4 {[%clk 0:00:00]}  cxd4 {[%clk 0:00:00]} 3. c3 {[%clk 0:00:00]}  d3 {[%clk 0:00:00]} 4. Nf3 {[%clk 0:00:00]}  Nc6 {[%clk 0:00:00]} 5. Bxd3 {[%clk 0:00:00]}  g6 {[%clk 0:00:00]} 6. c4 {[%clk 0:00:00]}  Bg7 {[%clk 0:00:00]} 7. Nc3 {[%clk 0:00:00]}  d6 {[%clk 0:00:00]} 8. O-O {[%clk 0:00:00]}  Nf6 {[%clk 0:00:00]} 9. h3 {[%clk 0:00:00]}  O-O {[%clk 0:00:00]} 10. Be3 {[%clk 0:00:00]}  a6 {[%clk 0:00:00]} 11. Rc1 {[%clk 0:00:00]}  Be6 {[%clk 0:00:00]} 12. Qd2 {[%clk 0:00:00]}  Rc8 {[%clk 0:00:00]} 13. b3 {[%clk 0:00:00]}  Qa5 {[%clk 0:00:00]} 14. Bh6 {[%clk 0:00:00]}  Qh5 {[%clk 0:00:00]} 15. Bxg7 {[%clk 0:00:00]}  Kxg7 {[%clk 0:00:00]} 16. Ng5 {[%clk 0:00:00]}  h6 {[%clk 0:00:00]} 17. Nxe6+ {[%clk 0:00:00]}  fxe6 {[%clk 0:00:00]} 18. f4 {[%clk 0:00:00]}  e5 {[%clk 0:00:00]} 19. f5 {[%clk 0:00:00]}  Qg5 {[%clk 0:00:00]} 20. Qe1 {[%clk 0:00:00]}  Nd4 {[%clk 0:00:00]} 21. Rd1 {[%clk 0:00:00]}  Nh5 {[%clk 0:00:00]} 22. h4 {[%clk 0:00:00]}  Qg3 {[%clk 0:00:00]} 23. Ne2 {[%clk 0:00:00]}  Nxe2+ {[%clk 0:00:00]} 24. Bxe2 {[%clk 0:00:00]}  Qxe1 {[%clk 0:00:00]} 25. Rdxe1 {[%clk 0:00:00]}  Ng3 {[%clk 0:00:00]} 26. Rf3 {[%clk 0:00:00]}  Nxe4 {[%clk 0:00:00]} 27. fxg6 {[%clk 0:00:00]}  Nc5 {[%clk 0:00:00]} 28. h5 {[%clk 0:00:00]}  Rxf3 {[%clk 0:00:00]} 29. Bxf3 {[%clk 0:00:00]}  Rf8 {[%clk 0:00:00]} 30. Rf1 {[%clk 0:00:00]}  a5 {[%clk 0:00:00]} 31. Bd5 {[%clk 0:00:00]}  Rxf1+ {[%clk 0:00:00]} 32. Kxf1 {[%clk 0:00:00]}  e4 {[%clk 0:00:00]} 33. Bf7 {[%clk 0:00:00]}  a4 {[%clk 0:00:00]} 34. b4 {[%clk 0:00:00]}  Nd3 {[%clk 0:00:00]} 35. a3 {[%clk 0:00:00]}  Ne5 {[%clk 0:00:00]} 36. Be8 {[%clk 0:00:00]}  Nxc4 {[%clk 0:00:00]} 37. Bxa4 {[%clk 0:00:00]}  Nxa3 {[%clk 0:00:00]} 38. Ke2 {[%clk 0:00:00]}  Nc4 {[%clk 0:00:00]} 39. Bb5 {[%clk 0:00:00]}  d5 {[%clk 0:00:00]} 40. Bd7 {[%clk 0:00:00]}  Kf6 {[%clk 0:00:00]} 41. Bc8 {[%clk 0:00:00]}  b6 {[%clk 0:00:00]} 42. Bb7 {[%clk 0:00:00]}  Nb2 {[%clk 0:00:00]} 43. g4 {[%clk 0:00:00]}  Nd3 {[%clk 0:00:00]} 44. Bxd5 {[%clk 0:00:00]}  Nf4+ {[%clk 0:00:00]} 45. Ke3 {[%clk 0:00:00]}  Nxd5+ {[%clk 0:00:00]} 46. Kxe4 {[%clk 0:00:00]}  Nxb4 {[%clk 0:00:00]} 47. Kd4 {[%clk 0:00:00]}  Nc6+ {[%clk 0:00:00]} 48. Kd5 {[%clk 0:00:00]}  Ne5 {[%clk 0:00:00]} 49. g5+ {[%clk 0:00:00]}  hxg5 {[%clk 0:00:00]} 50. h6 {[%clk 0:00:00]}  Kxg6 {[%clk 0:00:00]} 51. Kxe5 {[%clk 0:00:00]}  Kxh6 {[%clk 0:00:00]} 0-1


[Site "https://www.chess.com"]

[Event "Titled Tuesday Blitz August 16 Late 2022"]
[White "Melikhov, Evgeny V."]
[Black "Shuvalova, Polina"]
[WhiteFideId "4122046"]
[BlackFideId "24171760"]
[WhiteElo "1963"]
[BlackElo "2330"]
[Result "1/2-1/2"]
[Round "02"]
[TimeControl "180+1"]
[Date "2022.08.18"]
[WhiteClock "0:00:00"]
[BlackClock "0:00:00"]

1. d4 {[%clk 0:00:00]}  Nf6 {[%clk 0:00:00]} 2. c4 {[%clk 0:00:00]}  e6 {[%clk 0:00:00]} 3. Nc3 {[%clk 0:00:00]}  d5 {[%clk 0:00:00]} 4. cxd5 {[%clk 0:00:00]}  Nxd5 {[%clk 0:00:00]} 5. e4 {[%clk 0:00:00]}  Nxc3 {[%clk 0:00:00]} 6. bxc3 {[%clk 0:00:00]}  c5 {[%clk 0:00:00]} 7. Nf3 {[%clk 0:00:00]}  cxd4 {[%clk 0:00:00]} 8. cxd4 {[%clk 0:00:00]}  Bb4+ {[%clk 0:00:00]} 9. Bd2 {[%clk 0:00:00]}  Bxd2+ {[%clk 0:00:00]} 10. Qxd2 {[%clk 0:00:00]}  O-O {[%clk 0:00:00]} 11. Bd3 {[%clk 0:00:00]}  b6 {[%clk 0:00:00]} 12. O-O {[%clk 0:00:00]}  Nd7 {[%clk 0:00:00]} 13. Rfe1 {[%clk 0:00:00]}  Bb7 {[%clk 0:00:00]} 14. Rad1 {[%clk 0:00:00]}  Rc8 {[%clk 0:00:00]} 15. Bb1 {[%clk 0:00:00]}  h6 {[%clk 0:00:00]} 16. d5 {[%clk 0:00:00]}  exd5 {[%clk 0:00:00]} 17. e5 {[%clk 0:00:00]}  Nc5 {[%clk 0:00:00]} 18. Nd4 {[%clk 0:00:00]}  Ne4 {[%clk 0:00:00]} 19. Qf4 {[%clk 0:00:00]}  Qg5 {[%clk 0:00:00]} 20. Qxg5 {[%clk 0:00:00]}  Nxg5 {[%clk 0:00:00]} 21. Nf5 {[%clk 0:00:00]}  Rc5 {[%clk 0:00:00]} 22. Nd6 {[%clk 0:00:00]}  Ba6 {[%clk 0:00:00]} 23. f4 {[%clk 0:00:00]}  Ne6 {[%clk 0:00:00]} 24. f5 {[%clk 0:00:00]}  Nc7 {[%clk 0:00:00]} 25. e6 {[%clk 0:00:00]}  fxe6 {[%clk 0:00:00]} 26. fxe6 {[%clk 0:00:00]}  Rc6 {[%clk 0:00:00]} 27. e7 {[%clk 0:00:00]}  Rxd6 {[%clk 0:00:00]} 28. exf8=Q+ {[%clk 0:00:00]}  Kxf8 {[%clk 0:00:00]} 29. Bd3 {[%clk 0:00:00]}  Bxd3 {[%clk 0:00:00]} 30. Rxd3 {[%clk 0:00:00]}  Rc6 {[%clk 0:00:00]} 31. Rf3+ {[%clk 0:00:00]}  Kg8 {[%clk 0:00:00]} 32. Re7 {[%clk 0:00:00]}  a5 {[%clk 0:00:00]} 33. Rd7 {[%clk 0:00:00]}  Rc1+ {[%clk 0:00:00]} 34. Kf2 {[%clk 0:00:00]}  Rc2+ {[%clk 0:00:00]} 35. Kg3 {[%clk 0:00:00]}  Ne6 {[%clk 0:00:00]} 36. Rxd5 {[%clk 0:00:00]}  Rxa2 {[%clk 0:00:00]} 37. Rd6 {[%clk 0:00:00]}  Ng5 {[%clk 0:00:00]} 38. Re3 {[%clk 0:00:00]}  b5 {[%clk 0:00:00]} 39. Rd7 {[%clk 0:00:00]}  Ra4 {[%clk 0:00:00]} 40. Ree7 {[%clk 0:00:00]}  Kf8 {[%clk 0:00:00]} 41. Rxg7 {[%clk 0:00:00]}  Ra3+ {[%clk 0:00:00]} 42. Kf2 {[%clk 0:00:00]}  Ne4+ {[%clk 0:00:00]} 43. Ke2 {[%clk 0:00:00]}  Nc3+ {[%clk 0:00:00]} 44. Ke1 {[%clk 0:00:00]}  Ra1+ {[%clk 0:00:00]} 45. Kf2 {[%clk 0:00:00]}  a4 {[%clk 0:00:00]} 46. Rh7 {[%clk 0:00:00]}  Ne4+ {[%clk 0:00:00]} 47. Ke3 {[%clk 0:00:00]}  Nf6 {[%clk 0:00:00]} 48. Rh8+ {[%clk 0:00:00]}  Ng8 {[%clk 0:00:00]} 49. Rd8+ {[%clk 0:00:00]}  Kf7 {[%clk 0:00:00]} 50. Rdxg8 {[%clk 0:00:00]}  a3 {[%clk 0:00:00]} 51. Ra8 {[%clk 0:00:00]}  a2 {[%clk 0:00:00]} 52. Rhb8 {[%clk 0:00:00]}  Re1+ {[%clk 0:00:00]} 53. Kf2 {[%clk 0:00:00]}  a1=Q {[%clk 0:00:00]} 54. Rxa1 {[%clk 0:00:00]}  Rxa1 {[%clk 0:00:00]} 55. Rxb5 {[%clk 0:00:00]}  Kg6 {[%clk 0:00:00]} 56. h4 {[%clk 0:00:00]}  Ra2+ {[%clk 0:00:00]} 57. Kf3 {[%clk 0:00:00]}  h5 {[%clk 0:00:00]} 58. Rg5+ {[%clk 0:00:00]}  Kh6 {[%clk 0:00:00]} 59. Rc5 {[%clk 0:00:00]}  Ra3+ {[%clk 0:00:00]} 60. Kf4 {[%clk 0:00:00]}  Ra4+ {[%clk 0:00:00]} 61. Kg3 {[%clk 0:00:00]}  Rg4+ {[%clk 0:00:00]} 62. Kh3 {[%clk 0:00:00]}  Ra4 {[%clk 0:00:00]} 63. Rc6+ {[%clk 0:00:00]}  Kh7 {[%clk 0:00:00]} 64. Rc5 {[%clk 0:00:00]}  Kh6 {[%clk 0:00:00]} 65. Rc6+ {[%clk 0:00:00]}  Kh7 {[%clk 0:00:00]} 66. Rc5 {[%clk 0:00:00]}  Kh6 {[%clk 0:00:00]} 1/2-1/2


[Site "https://www.chess.com"]

[Event "Titled Tuesday Blitz August 16 Late 2022"]
[White "Melikyan, Gnel"]
[Black "Thiel, Thomas"]
[WhiteFideId "54109990"]
[BlackFideId "4615964"]
[WhiteElo "1772"]
[BlackElo "2230"]
[Result "1-0"]
[Round "02"]
[TimeControl "180+1"]
[Date "2022.08.18"]
[WhiteClock "0:00:00"]
[BlackClock "0:00:00"]

1. e4 {[%clk 0:00:00]}  d5 {[%clk 0:00:00]} 2. exd5 {[%clk 0:00:00]}  Nf6 {[%clk 0:00:00]} 3. Nc3 {[%clk 0:00:00]}  Nxd5 {[%clk 0:00:00]} 4. Nxd5 {[%clk 0:00:00]}  Qxd5 {[%clk 0:00:00]} 5. Qf3 {[%clk 0:00:00]}  e6 {[%clk 0:00:00]} 6. Qxd5 {[%clk 0:00:00]}  exd5 {[%clk 0:00:00]} 7. d4 {[%clk 0:00:00]}  Bf5 {[%clk 0:00:00]} 8. c3 {[%clk 0:00:00]}  Bd6 {[%clk 0:00:00]} 9. Bg5 {[%clk 0:00:00]}  O-O {[%clk 0:00:00]} 10. O-O-O {[%clk 0:00:00]}  h6 {[%clk 0:00:00]} 11. Be3 {[%clk 0:00:00]}  a5 {[%clk 0:00:00]} 12. Bd3 {[%clk 0:00:00]}  Bxd3 {[%clk 0:00:00]} 13. Rxd3 {[%clk 0:00:00]}  a4 {[%clk 0:00:00]} 14. Ne2 {[%clk 0:00:00]}  a3 {[%clk 0:00:00]} 15. b3 {[%clk 0:00:00]}  Nd7 {[%clk 0:00:00]} 16. Bf4 {[%clk 0:00:00]}  Bxf4+ {[%clk 0:00:00]} 17. Nxf4 {[%clk 0:00:00]}  c6 {[%clk 0:00:00]} 18. Re1 {[%clk 0:00:00]}  Rfe8 {[%clk 0:00:00]} 19. Rde3 {[%clk 0:00:00]}  Kf8 {[%clk 0:00:00]} 20. Rxe8+ {[%clk 0:00:00]}  Rxe8 {[%clk 0:00:00]} 21. Rxe8+ {[%clk 0:00:00]}  Kxe8 {[%clk 0:00:00]} 22. Kc2 {[%clk 0:00:00]}  b5 {[%clk 0:00:00]} 23. Nd3 {[%clk 0:00:00]}  Ke7 {[%clk 0:00:00]} 24. Kd2 {[%clk 0:00:00]}  Kd6 {[%clk 0:00:00]} 25. Nb4 {[%clk 0:00:00]}  Nf6 {[%clk 0:00:00]} 26. f3 {[%clk 0:00:00]}  Nh5 {[%clk 0:00:00]} 27. Nc2 {[%clk 0:00:00]}  Nf4 {[%clk 0:00:00]} 28. g3 {[%clk 0:00:00]}  Ne6 {[%clk 0:00:00]} 29. Nxa3 {[%clk 0:00:00]}  b4 {[%clk 0:00:00]} 30. Nc2 {[%clk 0:00:00]}  bxc3+ {[%clk 0:00:00]} 31. Kxc3 {[%clk 0:00:00]}  c5 {[%clk 0:00:00]} 32. a4 {[%clk 0:00:00]}  cxd4+ {[%clk 0:00:00]} 33. Nxd4 {[%clk 0:00:00]}  Ng5 {[%clk 0:00:00]} 34. h4 {[%clk 0:00:00]}  Ne6 {[%clk 0:00:00]} 35. Nxe6 {[%clk 0:00:00]}  fxe6 {[%clk 0:00:00]} 36. f4 {[%clk 0:00:00]}  Kc5 {[%clk 0:00:00]} 37. b4+ {[%clk 0:00:00]}  Kc6 {[%clk 0:00:00]} 38. Kd4 {[%clk 0:00:00]}  Kd6 {[%clk 0:00:00]} 39. b5 {[%clk 0:00:00]} 1-0


[Site "https://www.chess.com"]

[Event "Titled Tuesday Blitz August 16 Late 2022"]
[White "Mihajlov, Sebastian"]
[Black "Novikova, Galina"]
[WhiteFideId "1512110"]
[BlackFideId "4157095"]
[WhiteElo "2464"]
[BlackElo "1923"]
[Result "1-0"]
[Round "02"]
[TimeControl "180+1"]
[Date "2022.08.18"]
[WhiteClock "0:00:00"]
[BlackClock "0:00:00"]

1. e4 {[%clk 0:00:00]}  e6 {[%clk 0:00:00]} 2. d4 {[%clk 0:00:00]}  d5 {[%clk 0:00:00]} 3. Nc3 {[%clk 0:00:00]}  Bb4 {[%clk 0:00:00]} 4. e5 {[%clk 0:00:00]}  c5 {[%clk 0:00:00]} 5. a3 {[%clk 0:00:00]}  Bxc3+ {[%clk 0:00:00]} 6. bxc3 {[%clk 0:00:00]}  Ne7 {[%clk 0:00:00]} 7. h4 {[%clk 0:00:00]}  h6 {[%clk 0:00:00]} 8. Qg4 {[%clk 0:00:00]}  Kf8 {[%clk 0:00:00]} 9. Bd2 {[%clk 0:00:00]}  Qa5 {[%clk 0:00:00]} 10. h5 {[%clk 0:00:00]}  Qa4 {[%clk 0:00:00]} 11. Ra2 {[%clk 0:00:00]}  Nbc6 {[%clk 0:00:00]} 12. Nf3 {[%clk 0:00:00]}  b6 {[%clk 0:00:00]} 13. Rh3 {[%clk 0:00:00]}  Ba6 {[%clk 0:00:00]} 14. Bxa6 {[%clk 0:00:00]}  Qxa6 {[%clk 0:00:00]} 15. Nh4 {[%clk 0:00:00]}  Qc4 {[%clk 0:00:00]} 16. Rb2 {[%clk 0:00:00]}  cxd4 {[%clk 0:00:00]} 17. cxd4 {[%clk 0:00:00]}  Qxd4 {[%clk 0:00:00]} 18. Qxd4 {[%clk 0:00:00]}  Nxd4 {[%clk 0:00:00]} 19. a4 {[%clk 0:00:00]}  Ndc6 {[%clk 0:00:00]} 20. f4 {[%clk 0:00:00]}  d4 {[%clk 0:00:00]} 21. Ke2 {[%clk 0:00:00]}  Nd5 {[%clk 0:00:00]} 22. Kd3 {[%clk 0:00:00]}  Ke7 {[%clk 0:00:00]} 23. Nf3 {[%clk 0:00:00]}  Rhd8 {[%clk 0:00:00]} 24. g4 {[%clk 0:00:00]}  a5 {[%clk 0:00:00]} 25. f5 {[%clk 0:00:00]}  Ndb4+ {[%clk 0:00:00]} 26. Ke4 {[%clk 0:00:00]}  d3 {[%clk 0:00:00]} 27. c3 {[%clk 0:00:00]}  Nd5 {[%clk 0:00:00]} 28. Nd4 {[%clk 0:00:00]}  Nxd4 {[%clk 0:00:00]} 29. cxd4 {[%clk 0:00:00]}  Rdc8 {[%clk 0:00:00]} 30. Kxd3 {[%clk 0:00:00]}  Rc6 {[%clk 0:00:00]} 31. fxe6 {[%clk 0:00:00]}  fxe6 {[%clk 0:00:00]} 32. g5 {[%clk 0:00:00]}  hxg5 {[%clk 0:00:00]} 33. Bxg5+ {[%clk 0:00:00]}  Kd7 {[%clk 0:00:00]} 34. Bd2 {[%clk 0:00:00]}  Rf8 {[%clk 0:00:00]} 35. Rg3 {[%clk 0:00:00]}  Rf7 {[%clk 0:00:00]} 36. Rb1 {[%clk 0:00:00]}  Kc7 {[%clk 0:00:00]} 37. Rbg1 {[%clk 0:00:00]}  Kb7 {[%clk 0:00:00]} 38. Rxg7 {[%clk 0:00:00]}  Rxg7 {[%clk 0:00:00]} 39. Rxg7+ {[%clk 0:00:00]}  Ka6 {[%clk 0:00:00]} 40. h6 {[%clk 0:00:00]}  Rc8 {[%clk 0:00:00]} 41. h7 {[%clk 0:00:00]}  Rh8 {[%clk 0:00:00]} 42. Ke4 {[%clk 0:00:00]}  b5 {[%clk 0:00:00]} 43. axb5+ {[%clk 0:00:00]}  Kxb5 {[%clk 0:00:00]} 44. Bg5 {[%clk 0:00:00]}  a4 {[%clk 0:00:00]} 45. Bf6 {[%clk 0:00:00]}  Nxf6+ {[%clk 0:00:00]} 46. exf6 {[%clk 0:00:00]}  a3 {[%clk 0:00:00]} 47. f7 {[%clk 0:00:00]}  a2 {[%clk 0:00:00]} 48. Rg1 {[%clk 0:00:00]}  Kb4 {[%clk 0:00:00]} 49. Ke5 {[%clk 0:00:00]}  Kb3 {[%clk 0:00:00]} 50. Kxe6 {[%clk 0:00:00]}  Kb2 {[%clk 0:00:00]} 51. Kf6 {[%clk 0:00:00]}  a1=Q {[%clk 0:00:00]} 52. Rxa1 {[%clk 0:00:00]}  Kxa1 {[%clk 0:00:00]} 53. Kg7 {[%clk 0:00:00]}  Rd8 {[%clk 0:00:00]} 54. h8=Q {[%clk 0:00:00]}  Rxd4 {[%clk 0:00:00]} 55. Kg6 {[%clk 0:00:00]} 1-0


[Site "https://www.chess.com"]

[Event "Titled Tuesday Blitz August 16 Late 2022"]
[White "Miszler, Levente"]
[Black "Leiva, Gianmarco"]
[WhiteFideId "763276"]
[BlackFideId "3804399"]
[WhiteElo "1966"]
[BlackElo "2323"]
[Result "0-1"]
[Round "02"]
[TimeControl "180+1"]
[Date "2022.08.18"]
[WhiteClock "0:00:00"]
[BlackClock "0:00:00"]

1. Nf3 {[%clk 0:00:00]}  d5 {[%clk 0:00:00]} 2. c4 {[%clk 0:00:00]}  e6 {[%clk 0:00:00]} 3. g3 {[%clk 0:00:00]}  Nf6 {[%clk 0:00:00]} 4. Bg2 {[%clk 0:00:00]}  Be7 {[%clk 0:00:00]} 5. O-O {[%clk 0:00:00]}  O-O {[%clk 0:00:00]} 6. Qc2 {[%clk 0:00:00]}  d4 {[%clk 0:00:00]} 7. d3 {[%clk 0:00:00]}  c5 {[%clk 0:00:00]} 8. e3 {[%clk 0:00:00]}  Nc6 {[%clk 0:00:00]} 9. exd4 {[%clk 0:00:00]}  cxd4 {[%clk 0:00:00]} 10. a3 {[%clk 0:00:00]}  a5 {[%clk 0:00:00]} 11. Re1 {[%clk 0:00:00]}  Nd7 {[%clk 0:00:00]} 12. Nbd2 {[%clk 0:00:00]}  e5 {[%clk 0:00:00]} 13. b3 {[%clk 0:00:00]}  Re8 {[%clk 0:00:00]} 14. Rb1 {[%clk 0:00:00]}  Bf8 {[%clk 0:00:00]} 15. Nf1 {[%clk 0:00:00]}  h6 {[%clk 0:00:00]} 16. Bd2 {[%clk 0:00:00]}  Bxa3 {[%clk 0:00:00]} 17. Ra1 {[%clk 0:00:00]}  Bf8 {[%clk 0:00:00]} 18. b4 {[%clk 0:00:00]}  Nxb4 {[%clk 0:00:00]} 19. Bxb4 {[%clk 0:00:00]}  Bxb4 {[%clk 0:00:00]} 20. N1d2 {[%clk 0:00:00]}  Nc5 {[%clk 0:00:00]} 21. Reb1 {[%clk 0:00:00]}  Bf5 {[%clk 0:00:00]} 22. Ne4 {[%clk 0:00:00]}  Bxe4 {[%clk 0:00:00]} 23. dxe4 {[%clk 0:00:00]}  d3 {[%clk 0:00:00]} 24. Qd1 {[%clk 0:00:00]}  Nxe4 {[%clk 0:00:00]} 25. Ne1 {[%clk 0:00:00]}  Nxf2 {[%clk 0:00:00]} 26. Kxf2 {[%clk 0:00:00]}  Qd4+ {[%clk 0:00:00]} 27. Kf1 {[%clk 0:00:00]}  Bc5 {[%clk 0:00:00]} 28. Nxd3 {[%clk 0:00:00]}  Qg1+ {[%clk 0:00:00]} 29. Ke2 {[%clk 0:00:00]}  Qxg2+ {[%clk 0:00:00]} 30. Ke1 {[%clk 0:00:00]}  e4 {[%clk 0:00:00]} 31. Rb2 {[%clk 0:00:00]}  exd3+ {[%clk 0:00:00]} 0-1


[Site "https://www.chess.com"]

[Event "Titled Tuesday Blitz August 16 Late 2022"]
[White "Nakamura, Hikaru"]
[Black "Tatarinov, Dmitry"]
[WhiteFideId "2016192"]
[BlackFideId "24160067"]
[WhiteElo "2850"]
[BlackElo "2324"]
[Result "1-0"]
[Round "02"]
[TimeControl "180+1"]
[Date "2022.08.16"]
[WhiteClock "0:02:12"]
[BlackClock "0:01:42"]

1. g3 {[%clk 0:03:00]}  d5 {[%clk 0:02:58]} 2. Bg2 {[%clk 0:02:58]}  c6 {[%clk 0:02:58]} 3. d3 {[%clk 0:02:59]}  e5 {[%clk 0:02:57]} 4. Nd2 {[%clk 0:02:58]}  Nf6 {[%clk 0:02:57]} 5. e4 {[%clk 0:02:59]}  dxe4 {[%clk 0:02:57]} 6. dxe4 {[%clk 0:02:59]}  Bg4 {[%clk 0:02:56]} 7. Ngf3 {[%clk 0:02:59]}  Nbd7 {[%clk 0:02:56]} 8. h3 {[%clk 0:02:59]}  Bxf3 {[%clk 0:02:56]} 9. Qxf3 {[%clk 0:02:59]}  Bc5 {[%clk 0:02:54]} 10. Qe2 {[%clk 0:02:59]}  a5 {[%clk 0:02:53]} 11. a4 {[%clk 0:02:56]}  O-O {[%clk 0:02:52]} 12. O-O {[%clk 0:02:56]}  Re8 {[%clk 0:02:53]} 13. Nc4 {[%clk 0:02:53]}  Qc7 {[%clk 0:02:53]} 14. h4 {[%clk 0:02:50]}  Nf8 {[%clk 0:02:50]} 15. Bh3 {[%clk 0:02:46]}  Ne6 {[%clk 0:02:50]} 16. c3 {[%clk 0:02:47]}  b6 {[%clk 0:02:43]} 17. Bg5 {[%clk 0:02:39]}  Nd7 {[%clk 0:02:37]} 18. Rad1 {[%clk 0:02:35]}  Ndf8 {[%clk 0:02:36]} 19. Bc1 {[%clk 0:02:34]}  b5 {[%clk 0:02:34]} 20. axb5 {[%clk 0:02:34]}  cxb5 {[%clk 0:02:34]} 21. Ne3 {[%clk 0:02:34]}  a4 {[%clk 0:02:34]} 22. Qxb5 {[%clk 0:02:33]}  Bxe3 {[%clk 0:02:22]} 23. Bxe3 {[%clk 0:02:32]}  Reb8 {[%clk 0:02:23]} 24. Qe2 {[%clk 0:02:32]}  Nc5 {[%clk 0:02:21]} 25. Qc4 {[%clk 0:02:27]}  Nce6 {[%clk 0:02:16]} 26. Qxc7 {[%clk 0:02:26]}  Nxc7 {[%clk 0:02:17]} 27. Rd2 {[%clk 0:02:26]}  Nce6 {[%clk 0:02:14]} 28. Rfd1 {[%clk 0:02:24]}  a3 {[%clk 0:02:12]} 29. bxa3 {[%clk 0:02:24]}  Rxa3 {[%clk 0:02:12]} 30. Rd5 {[%clk 0:02:22]}  f6 {[%clk 0:02:01]} 31. Rd6 {[%clk 0:02:22]}  Re8 {[%clk 0:01:58]} 32. Rc6 {[%clk 0:02:22]}  h5 {[%clk 0:01:53]} 33. Rb1 {[%clk 0:02:18]}  Re7 {[%clk 0:01:45]} 34. Rb8 {[%clk 0:02:15]}  Kf7 {[%clk 0:01:46]} 35. Bf1 {[%clk 0:02:13]}  Rc7 {[%clk 0:01:39]} 36. Rxc7+ {[%clk 0:02:12]}  Nxc7 {[%clk 0:01:40]} 37. Rxf8+ {[%clk 0:02:13]}  Kxf8 {[%clk 0:01:41]} 38. Bc5+ {[%clk 0:02:13]}  Kf7 {[%clk 0:01:42]} 39. Bc4+ {[%clk 0:02:12]} 1-0


[Site "https://www.chess.com"]

[Event "Titled Tuesday Blitz August 16 Late 2022"]
[White "Nazaretyan, Tigran"]
[Black "Tristan, Leonardo"]
[WhiteFideId "24162345"]
[BlackFideId "113816"]
[WhiteElo "2183"]
[BlackElo "2404"]
[Result "0-1"]
[Round "02"]
[TimeControl "180+1"]
[Date "2022.08.16"]
[WhiteClock "0:00:05"]
[BlackClock "0:00:13"]

1. d4 {[%clk 0:03:00]}  d5 {[%clk 0:02:59]} 2. c4 {[%clk 0:02:59]}  e6 {[%clk 0:02:59]} 3. Nf3 {[%clk 0:02:58]}  Nf6 {[%clk 0:02:59]} 4. Nc3 {[%clk 0:02:57]}  a6 {[%clk 0:02:59]} 5. e3 {[%clk 0:02:56]}  b6 {[%clk 0:02:58]} 6. b3 {[%clk 0:02:50]}  Bb7 {[%clk 0:02:57]} 7. Bd3 {[%clk 0:02:48]}  Bd6 {[%clk 0:02:54]} 8. O-O {[%clk 0:02:44]}  O-O {[%clk 0:02:54]} 9. Bb2 {[%clk 0:02:40]}  Nbd7 {[%clk 0:02:54]} 10. Qc2 {[%clk 0:02:39]}  dxc4 {[%clk 0:02:44]} 11. Bxc4 {[%clk 0:02:34]}  Bxf3 {[%clk 0:02:42]} 12. gxf3 {[%clk 0:02:34]}  e5 {[%clk 0:02:43]} 13. Ne2 {[%clk 0:02:26]}  Qe7 {[%clk 0:02:40]} 14. Ng3 {[%clk 0:02:18]}  g6 {[%clk 0:02:39]} 15. Rad1 {[%clk 0:02:15]}  b5 {[%clk 0:02:34]} 16. Bd3 {[%clk 0:02:14]}  c5 {[%clk 0:02:34]} 17. Rfe1 {[%clk 0:01:40]}  Rac8 {[%clk 0:02:32]} 18. Qd2 {[%clk 0:01:37]}  Rfd8 {[%clk 0:02:29]} 19. Re2 {[%clk 0:01:28]}  h5 {[%clk 0:02:23]} 20. Qe1 {[%clk 0:01:23]}  h4 {[%clk 0:02:22]} 21. Ne4 {[%clk 0:01:23]}  Nxe4 {[%clk 0:02:22]} 22. Bxe4 {[%clk 0:01:22]}  exd4 {[%clk 0:02:16]} 23. exd4 {[%clk 0:01:20]}  Qg5+ {[%clk 0:02:15]} 24. Kh1 {[%clk 0:01:19]}  Qf4 {[%clk 0:01:59]} 25. Qg1 {[%clk 0:01:19]}  c4 {[%clk 0:01:57]} 26. Bc1 {[%clk 0:01:16]}  Qf6 {[%clk 0:01:51]} 27. Bg5 {[%clk 0:01:16]}  Qe6 {[%clk 0:01:46]} 28. Bxd8 {[%clk 0:01:04]}  Rxd8 {[%clk 0:01:47]} 29. bxc4 {[%clk 0:00:54]}  bxc4 {[%clk 0:01:47]} 30. Rde1 {[%clk 0:00:54]}  Qf6 {[%clk 0:01:42]} 31. Qg4 {[%clk 0:00:52]}  Qxd4 {[%clk 0:01:21]} 32. Qxh4 {[%clk 0:00:51]}  Nf6 {[%clk 0:01:09]} 33. Qg5 {[%clk 0:00:43]}  Kg7 {[%clk 0:00:56]} 34. Rd2 {[%clk 0:00:42]}  Qc3 {[%clk 0:00:56]} 35. Red1 {[%clk 0:00:42]}  Nxe4 {[%clk 0:00:45]} 36. fxe4 {[%clk 0:00:40]}  Qf3+ {[%clk 0:00:45]} 37. Qg2 {[%clk 0:00:40]}  Qf4 {[%clk 0:00:43]} 38. Rd5 {[%clk 0:00:27]}  c3 {[%clk 0:00:41]} 39. f3 {[%clk 0:00:24]}  Rc8 {[%clk 0:00:30]} 40. Rxd6 {[%clk 0:00:20]}  c2 {[%clk 0:00:30]} 41. Qg3 {[%clk 0:00:14]}  c1=Q {[%clk 0:00:25]} 42. Rxc1 {[%clk 0:00:10]}  Rxc1+ {[%clk 0:00:23]} 43. Kg2 {[%clk 0:00:10]}  Rc2+ {[%clk 0:00:23]} 44. Kh3 {[%clk 0:00:10]}  Qh6+ {[%clk 0:00:24]} 45. Kg4 {[%clk 0:00:10]}  Rxh2 {[%clk 0:00:13]} 46. Qe5+ {[%clk 0:00:09]}  Kh7 {[%clk 0:00:14]} 47. Qg5 {[%clk 0:00:05]}  Rg2+ {[%clk 0:00:13]} 0-1


[Site "https://www.chess.com"]